Cogmind - Beta 13 @@@ ROGUE MODE // 2024.06.07 @ 22:50:38 Player: Sherlockkat Result: Self-destructed Performance ------------- Evolutions (1) 500 Regions Visited (5) 1000 Robots Destroyed (40) 200 Value Destroyed (701) 701 Prototype IDs (25) 500 Alien Tech Used (0) 0 Bonus (373) 373 TOTAL SCORE: 3274 Bonus ------- Follower Combat Kills 143 Aligned with FarCom 300 Friendly Fire -70 Cogmind --------- Core Integrity 308/400 Matter 288/300 Energy 280/280 System Corruption 2% Temperature Cool (0) Movement Core (550) Ox10 Location -9/Exiles Parts ------- > --- POWER (1) -------- Heavy Ion Engine > --- PROPULSION (3) --- (None) > --- UTILITY (3) ------ Large Storage Unit Signal Interpreter > --- WEAPON (2) ------- Light Cannon > --- INVENTORY (15) --- Heavy Ion Engine Light Treads Heat Sink Large Storage Unit High-capacity Matter Pod (200) Experimental Sensor Array Seismic Detector Cloak of Protection Improved EM Shotgun Improved EM Shotgun Firepult Makeshift Shrapnel Gun Grenade Launcher Rocket Launcher Peak State ------------ > --- POWER ------------ Heavy Ion Engine > --- PROPULSION ------- Light Treads Light Treads Light Treads > --- UTILITY ---------- Large Storage Unit Signal Interpreter Light Armor Plating > --- WEAPON ----------- Improved EM Shotgun Heavy Assault Rifle > --- INVENTORY -------- Heavy Ion Engine Light Treads Heat Sink Large Storage Unit High-capacity Matter Pod Experimental Sensor Array Seismic Detector Improved EM Shotgun Firepult Light Assault Rifle Makeshift Shrapnel Gun Light Cannon Grenade Launcher Rocket Launcher [Rating: 18] Favorites ----------- Power Heavy Ion Engine Engine Heavy Ion Engine Propulsion Light Treads Treads Light Treads Wheel Compact Wheel Utility Large Storage Unit Storage Large Storage Unit Processor Signal Interpreter Protection Light Armor Plating Weapon Heavy Assault Rifle Energy Gun Improved EM Shotgun Ballistic Gun Heavy Assault Rifle Ballistic Cannon Light Cannon Launcher Rocket Launcher Build | -11 -10 -10 -9 -9 -9 ------- Run | Yrd Mat Min Mat Min Exi Slots Evolved 2 | . . . 2 . . Power . | . . . . . . Propulsion 1 | . . . 1 . . Utility 1 | . . . 1 . . Weapon . | . . . . . . Parts Attached 24 | 6 3 4 9 . 2 Power 3 | 1 . 1 1 . . Engine 3 | 1 . 1 1 . . Core . | . . . . . . Reactor . | . . . . . . Propulsion 7 | 2 1 . 4 . . Treads 3 | . . . 3 . . Leg . | . . . . . . Wheel 4 | 2 1 . 1 . . Hover . | . . . . . . Flight . | . . . . . . Utility 5 | 1 2 . 2 . . Device . | . . . . . . Storage 2 | 1 1 . . . . Processor 1 | . 1 . . . . Hackware . | . . . . . . Protection 2 | . . . 2 . . Artifact . | . . . . . . Weapon 9 | 2 . 3 2 . 2 Energy Gun 3 | 1 . 1 1 . . Energy Cannon . | . . . . . . Ballistic Gun 3 | 1 . 1 1 . . Ballistic Cannon 1 | . . . . . 1 Launcher 2 | . . 1 . . 1 Special Weapon . | . . . . . . Impact Weapon . | . . . . . . Slashing Weapon . | . . . . . . Piercing Weapon . | . . . . . . Special Melee Weapon . | . . . . . . Unidentified Prototypes 2 | . . . 2 . . Parts Lost 6 | . . . 1 . 5 Power . | . . . . . . Propulsion 4 | . . . 1 . 3 Utility 1 | . . . . . 1 Weapon 1 | . . . . . 1 Highest Loss Streak 5 | . . . 1 . 5 To Critical Strikes 1 | . . . . . 1 Average Slot Usage (%) 99 | . 100 100 99 100 99 Engine 11 | . 14 14 11 11 11 Treads 27 | . . . 26 33 32 Wheel 4 | . 28 28 5 . . Storage 12 | . 26 14 11 11 11 Processor 10 | . 1 14 11 11 11 Protection 9 | . . . 11 11 10 Energy Gun 9 | . 14 8 4 11 7 Ballistic Gun 12 | . 14 19 17 11 11 Naked Turns . | . . . . . . Heaviest Build 38 | 11 31 29 37 37 38 Greatest Support 60 | 32 32 26 60 60 60 Greatest Overweight (x) 1 | . 1 1 . . . Average Overweight (x) . | . . . . . . Largest Inventory Capacity 15 | 8 15 15 15 15 15 Average Capacity 14 | 6 14 15 15 15 15 Most Carried 15 | 4 13 15 15 15 15 Average Carried 14 | 2 8 13 14 15 14 Final Capacity 15 | 8 15 15 15 15 15 Final Carried 15 | 4 13 14 15 15 15 Class Distribution -------------------- 100% | Mutant Dominant Class ---------------- Mutant | -10/Materials Mutant | -10/Mines Mutant | -9/Materials Mutant | -9/Mines Mutant | -9/Exiles Resources | -11 -10 -10 -9 -9 -9 ----------- Run | Yrd Mat Min Mat Min Exi Matter Collected 791 | 226 173 102 158 59 73 Remotely . | . . . . . . Salvage Created 1048 | . 173 109 264 293 209 Parts 85 | . 22 8 11 27 17 Haulers Intercepted 3 | . . . 3 . . Recyclers Shooed 3 | . 2 1 . . . Parts Field Recycled . | . . . . . . Retrieved Matter . | . . . . . . Parts Self-Destructed . | . . . . . . Prevented . | . . . . . . Kills | -11 -10 -10 -9 -9 -9 ------- Run | Yrd Mat Min Mat Min Exi Combat Hostiles Destroyed 27 | . 9 5 1 6 6 Guns 19 | . 9 2 . 5 3 Cannons 1 | . . . . . 1 AOE 7 | . . 3 1 1 2 Classes Destroyed 11 | . 3 . 3 3 2 Worker 5 | . 1 1 . 3 . Builder 1 | . . . . 1 . Tunneler 2 | . . . . 2 . Hauler 3 | . . . 3 . . Recycler 1 | . . . 1 . . Mechanic 1 | . . . . 1 . Swarmer 15 | . 8 3 . 4 . Grunt 9 | . 1 2 . 2 4 Sentry 1 | . . . 1 . . Hunter 1 | . . . . . 1 Programmer 1 | . . . . . 1 Best Kill Streak 4 | . 4 4 3 4 3 Combat Bots Only 4 | . 4 3 1 4 3 Max Kills in Single Turn 4 | . 1 4 1 2 2 Gunslinging . | . . . . . . Exploded 3 | . . 3 1 1 2 Melee . | . . . . . . Uniques/NPCs Destroyed . | . . . . . . Combat | -11 -10 -10 -9 -9 -9 -------- Run | Yrd Mat Min Mat Min Exi Hostile Shots Fired 141 | . 27 17 6 12 79 Missed 47 | . 3 7 1 4 32 Damage Taken 1212 | . 193 112 101 97 709 Core 192 | . 48 52 . 13 79 Absorbed by Shields . | . . . . . . Core Remaining (%) 80 | 100 . 60 . . . Volleys Fired 73 | . 22 8 15 13 15 Largest 2 | . 2 2 2 2 2 Hottest 70 | . 70 70 65 68 68 Shots Fired 141 | . 44 15 30 26 26 Gun 129 | . 44 14 30 26 15 Cannon 10 | . . . . . 10 Launcher 2 | . . 1 . . 1 Special . | . . . . . . Kinetic 90 | . 22 7 25 13 23 Thermal 29 | . 22 7 . . . Explosive 2 | . . 1 . . 1 Electromagnetic 20 | . . . 5 13 2 Robot Hit Streak 10 | . 10 6 8 6 5 Robot Miss Streak 4 | . 4 1 2 3 3 Penetration Max . | . . . . . . Secondary Targets 3 | . . 1 . 2 . Max Gunslinging Chain 1 | . . 1 . 1 . Shots Hit Robots 91 | . 27 12 23 17 12 Core Hits 54 | . 13 9 9 15 8 Critical Kills . | . . . . . . Critical Parts Destroyed . | . . . . . . Critical Strikes 3 | . 1 1 . . 1 Burn 2 | . 1 1 . . . Blast 1 | . . . . . 1 Melee Attacks . | . . . . . . Impact . | . . . . . . Slashing . | . . . . . . Piercing . | . . . . . . Sneak Attacks . | . . . . . . Combat Hostiles . | . . . . . . Follow-up Attacks . | . . . . . . Damage Inflicted 1566 | . 271 292 293 371 339 Guns 985 | . 271 119 242 267 86 Cannons 117 | . . . . . 117 Explosions 464 | . . 173 51 104 136 Melee . | . . . . . . Ramming . | . . . . . . Kinetic 633 | . 93 43 176 118 203 Thermal 409 | . 178 76 51 104 . Explosive 309 | . . 173 . . 136 Electromagnetic 215 | . . . 66 149 . Impact . | . . . . . . Slashing . | . . . . . . Piercing . | . . . . . . Highest Corruption 2 | . . . . . 2 Average Corruption 1 | . . . . . 1 Corruption Purged . | . . . . . . Corruption Blocked . | . . . . . . Overload Shots . | . . . . . . Overflow Damage 51 | . . 15 . . 36 Projectiles . | . . . . . . Explosions 51 | . . 15 . . 36 Melee . | . . . . . . Knockbacks . | . . . . . . Impact . | . . . . . . Kinetic . | . . . . . . Secondary . | . . . . . . Self-Inflicted Damage 58 | . . . 26 32 . Shots 2 | . . . 1 1 . Rammed . | . . . . . . Targets Rammed . | . . . . . . Kicked . | . . . . . . Crushed . | . . . . . . Highest Temperature 167 | . 160 167 47 42 9 Average Temperature 44 | . 56 87 23 14 5 Received Heat Transfer 120 | . 6 57 36 15 6 Siege Activations . | . . . . . . Robots Corrupted . | . . . . . . Combat Hostiles . | . . . . . . Parts Fried 1 | . . . 1 . . Impact Corruptions . | . . . . . . Robots Melted . | . . . . . . Combat Hostiles . | . . . . . . Parts Melted 1 | . . 1 . . . Heat Transferred 1138 | . 592 296 50 200 . Parts Sabotaged . | . . . . . . Parts Stolen . | . . . . . . Parts Stripped . | . . . . . . Power Chain Reactions 3 | . . . 1 2 . Alert | -11 -10 -10 -9 -9 -9 ------- Run | Yrd Mat Min Mat Min Exi Peak Influence 249 | . 236 220 249 191 . Initial 96 | . . 91 85 96 . Average 75 | . 106 181 158 48 . Maximum Alert Level 1 | . 1 1 1 . . Low Security (%) 90 | 100 77 42 71 100 . Level 1 9 | . 22 57 28 . . Level 2 . | . . . . . . Level 3 . | . . . . . . Level 4 . | . . . . . . Level 5 . | . . . . . . High Security . | . . . . . . Max Security . | . . . . . . Squads Dispatched 1 | . . . . 1 . Investigation . | . . . . . . Extermination . | . . . . . . Reinforcement . | . . . . . . Assault 1 | . . . . 1 . Garrison . | . . . . . . Intercept . | . . . . . . Searches Triggered . | . . . . . . Construction Impeded . | . . . . . . Haulers Reinforced . | . . . . . . Active Scanning Responses . | . . . . . . Cargo Convoy Interrupts . | . . . . . . Stealth | -11 -10 -10 -9 -9 -9 --------- Run | Yrd Mat Min Mat Min Exi Distress Signals . | . . . . . . Communications Jammed . | . . . . . . Distress Signals . | . . . . . . Times Spotted 43 | . 13 5 5 8 12 Peak Tracking Total 7 | . 5 3 2 4 7 Tactical Retreats 1 | . 1 . . . . Traps | -11 -10 -10 -9 -9 -9 ------- Run | Yrd Mat Min Mat Min Exi Traps Triggered . | . . . . . . Indirectly . | . . . . . . Trap Hack Attempts . | . . . . . . Triggered . | . . . . . . Disarmed . | . . . . . . Reprogrammed . | . . . . . . Reused . | . . . . . . Traps Extracted . | . . . . . . Installed . | . . . . . . Triggered . | . . . . . . Machines | -11 -10 -10 -9 -9 -9 ---------- Run | Yrd Mat Min Mat Min Exi Machines Disabled 7 | . . . . 1 6 Max in Single Turn 1 | . . . . 1 1 Machines Repaired . | . . . . . . Machines Dismantled . | . . . . . . Machines Sabotaged . | . . . . . . Overloaded Fab Kills . | . . . . . . Hacking | -11 -10 -10 -9 -9 -9 --------- Run | Yrd Mat Min Mat Min Exi Machines Accessed 1 | . . . . . 1 Terminals . | . . . . . . Fabricators . | . . . . . . Repair Stations . | . . . . . . Recycling Units . | . . . . . . Scanalyzers . | . . . . . . Garrison Access . | . . . . . . Total Hacks 1 | . . . . . 1 Successful 1 | . . . . . 1 Failed . | . . . . . . Catastrophic . | . . . . . . Database Lockouts . | . . . . . . Manual 1 | . . . . . 1 Terminals . | . . . . . . Fabricators . | . . . . . . Repair Stations . | . . . . . . Recycling Units . | . . . . . . Scanalyzers . | . . . . . . Garrison Access . | . . . . . . Terminal Hacks 1 | . . . . . 1 Derelict Proto ID Bank 1 | . . . . . 1 Fabricator Hacks . | . . . . . . Repair Station Hacks . | . . . . . . Recycling Unit Hacks . | . . . . . . Scanalyzer . | . . . . . . Garrison Access Hacks . | . . . . . . Unauthorized Hacks . | . . . . . . Terminals . | . . . . . . Fabricators . | . . . . . . Repair Stations . | . . . . . . Recycling Units . | . . . . . . Scanalyzers . | . . . . . . Garrison Access . | . . . . . . Data Cores Recovered . | . . . . . . Used . | . . . . . . Hacking Detections . | . . . . . . Full Trace Events . | . . . . . . Feedback Events . | . . . . . . Feedback Blocked . | . . . . . . Robot Schematics Acquired . | . . . . . . Robots Built . | . . . . . . Authchips . | . . . . . . Time . | . . . . . . Total Robot Build Rating . | . . . . . . Part Schematics Acquired . | . . . . . . Parts Built . | . . . . . . Authchips . | . . . . . . Time . | . . . . . . Total Part Build Rating . | . . . . . . Parts Repaired . | . . . . . . Time . | . . . . . . Parts Recycled . | . . . . . . Recycled Matter . | . . . . . . Retrieved Matter . | . . . . . . Retrieved Components . | . . . . . . Parts Scanalyzed . | . . . . . . Part Schematics Acquired . | . . . . . . Parts Damaged . | . . . . . . Bothacking | -11 -10 -10 -9 -9 -9 ------------ Run | Yrd Mat Min Mat Min Exi Used RIF Installer . | . . . . . . Robots Hacked . | . . . . . . Non-combat . | . . . . . . Combat . | . . . . . . Robot Hacks Applied . | . . . . . . Relay Couplers Released . | . . . . . . Fabnet Peak Effective % . | . . . . . . Robots Rewired . | . . . . . . Allies Hacked 1 | . . . . . 1 Hacks Repelled . | . . . . . . Allies | -11 -10 -10 -9 -9 -9 -------- Run | Yrd Mat Min Mat Min Exi Total Allies 5 | . . 1 . 4 . Largest Group 4 | . . 1 1 4 3 Highest-Rated Group 71 | . . 31 31 71 40 Highest-Rated Ally 31 | . . 31 31 31 16 Total Orders . | . . . . . . Ally Attacks 32 | . . . 11 8 13 Total Damage 404 | . . . 103 148 153 Kills 6 | . . . 3 2 1 Allies Corrupted . | . . . . . . Allies Melted . | . . . . . . Intel | -11 -10 -10 -9 -9 -9 ------- Run | Yrd Mat Min Mat Min Exi Robot Analysis Total . | . . . . . . Derelict Logs Recovered 1 | . . . . 1 . Drone Launches . | . . . . . . Drone Recoveries . | . . . . . . Exploration | -11 -10 -10 -9 -9 -9 ------------- Run | Yrd Mat Min Mat Min Exi Turns Passed 2963 | 63 258 123 300 1526 693 Spaces Moved 1782 | 51 174 86 155 915 401 Core 2 | 2 . . . . . Treads 1428 | . . . 112 915 401 Legs . | . . . . . . Wheels 352 | 49 174 86 43 . . Hover . | . . . . . . Flight . | . . . . . . Fastest Speed 50 | 50 90 90 93 160 160 Average Speed 148 | 98 100 104 141 160 160 Slowest Speed 160 | 100 105 105 160 160 160 Overloaded Moves . | . . . . . . Propulsion Burnouts . | . . . . . . Robots Hopped . | . . . . . . Cave-ins Triggered . | . . . . . . Exploration Rate (%) 37 | 3 35 20 14 97 58 Regions Visited 5 Branch Regions 3 Pre-discovered Areas . | . . . . . . Known Exits Taken 4 | . 1 1 1 1 . Unknown Exits Taken 1 | 1 . . . . . Scrap Searched 2 | . . . . 2 . Spaces Dug . | . . . . . . Terrain Destroyed 16 | . . 4 2 6 4 Melee . | . . . . . . Projectile . | . . . . . . AOE 16 | . . 4 2 6 4 Terrain Rammed . | . . . . . . Walls Destroyed . | . . . . . . Machines Disabled . | . . . . . . Actions | -11 -10 -10 -9 -9 -9 --------- Run | Yrd Mat Min Mat Min Exi Total 1976 | 60 217 105 214 954 426 Wait 61 | . 9 3 23 23 3 Move 1777 | 50 173 85 154 914 401 Hop . | . . . . . . Pick Up 23 | 4 8 2 5 2 2 Fast Attach 12 | 6 2 1 3 . . Attach 4 | . . . 4 . . Detach 4 | . 1 1 2 . . Swap 8 | . 1 3 2 . 2 Drop 14 | . 1 2 6 2 3 Fire 73 | . 22 8 15 13 15 Melee . | . . . . . . Ram . | . . . . . . Kick . | . . . . . . Crush . | . . . . . . Escape Stasis . | . . . . . . Rewire . | . . . . . . Trap . | . . . . . . Miscellaneous . | . . . . . . Route ------- -11/Scrapyard -10/Materials -10/Mines -9/Materials -9/Mines (discovered 3 exits: *Mat x2 / *Exi) -9/Exiles (discovered 1 exit: [*Min]) History --------- Turn | Location | Event 17 | -11/Scrapyard | Discovered new exit (range 15) 64 | -11/Scrapyard | Entered Materials 311 | -10/Materials | Discovered new exit (range 13) 321 | -10/Materials | Identified exit to Mines 322 | -10/Materials | Entered Mines 328 | -10/Mines | Build established: Mutant 389 | -10/Mines | Found a damaged Exp. Sensor Array with a note attached 391 | -10/Mines | Found Prototype Device 402 | -10/Mines | Discovered new exit (range 11) 405 | -10/Mines | Received a Mining Laser from a helpful Derelict 444 | -10/Mines | Identified exit to Materials 445 | -10/Mines | Entered Materials 445 | -9/Materials | Accompanied by 1 ally 445 | -9/Materials | Evolved 2 slots: Propulsion x1, Utility x1 650 | -9/Materials | Discovered new exit (range 15) 736 | -9/Materials | Identified exit to Mines 745 | -9/Materials | Entered Mines 796 | -9/Mines | Met a Derelict bent on vengeance 988 | -9/Mines | Discovered new exit (range 9) 1033 | -9/Mines | Assisted by bots powering up and referring to "LRC-V3" 1074 | -9/Mines | Discovered new exit (range 5) 1217 | -9/Mines | A weapon hastily lodged in a ceiling crevice suddenly fell to the ground 1274 | -9/Mines | Received a Rocket Launcher from a helpful Derelict 1350 | -9/Mines | Found a hidden stash of uninstalled traps 1454 | -9/Mines | Learned Materials emergency access door positions 1603 | -9/Mines | Identified exit to Materials 1771 | -9/Mines | Met a Derelict testing a Signal Generator 2246 | -9/Mines | Deemed a non-threat by the Exiles lab entrance 2247 | -9/Mines | Discovered new exit (range 5) 2252 | -9/Mines | Identified exit to Exiles 2271 | -9/Mines | Entered Exiles 2271 | -9/Exiles | Accompanied by 3 allies 2292 | -9/Exiles | Discovered new exit (range 15) 2315 | -9/Exiles | Met 8R-AWN 2337 | -9/Exiles | Met EX-HEX 2451 | -9/Exiles | Met EX-BIN 2535 | -9/Exiles | Aligned with FarCom system 2537 | -9/Exiles | Given EX-Vault access code 2582 | -9/Exiles | Opened EX-Vault 2597 | -9/Exiles | Found Firepult 2646 | -9/Exiles | Warned to stay clear of 0b10 Research branches 2649 | -9/Exiles | Exiles lab attacked by MAIN.C 2867 | -9/Exiles | Found Cloak of Protection 2964 | -9/Exiles | Self-destructed Last Messages --------------- 02947_ Slug penetrates Machine. 02950_ Penetrated by Slug. 02950_ Lgt. Treads destroyed. 02952_ Slug penetrates Wall. 02953_ Machine disabled. 02953_ Penetrated by Slug. 02953_ P-60 Hacker destroyed. 02954_ Penetrated by Slug. 02956_ H-55 Commando suffers critical hit (Blast). 02956_ H-55 Commando destroyed. 02956_ Penetrated by Slug. 02956_ Lgt. Treads destroyed. 02959_ Penetrated by Slug. 02960_ Critical hit (Destroy). 02960_ Lgt. Treads destroyed. 02960_ Hvy. Assault Rifle destroyed. 02961_ Penetrated by Slug. 02962_ Slug penetrates Wall. 02963_ Penetrated by Slug. Map ----- +----------------------------------------------------+ | ??????????????????""""""?# #???###???????????? | | ??????????????????"""" ## #?????????????????? | | ?????????????????#""X" #?????????????????? | | ?????????????????#" #?????????????????? | | ?????????????????#" ## #?????????????????? | | ?????????????????#""""""?# #?#########???????? | | ?????????????????##"###??# #?#"""""""#???????? | | ?????????????????????????# #?#"""""""#???????? | | ?????????????????????????# #?#"""""""#???????? | | ????????????????????????## ###"" """"#???????? | | ????????????????????????#" """"#???????? | | ????????????????????????#" """#???????? | | ????????????????????????#" """#???????? | | ????????????????????????#" """#???????? | | ???????????##???????????#" """#???????? | | ??????????? "??????????#" """#???????? | | ???????????" ""?????????## """"???????? | | ??????????"" ?????????# """#???????? | | ?????????#"" ??????????#" "X" """"???????? | | ?????????#"" ??????????#" """ #???????? | | ?????????? ""?????????#" = """"""""#???????? | | ???????????" "?????????## [%[##########????????? | | #??????????# #????????## %!*#?????????????????? | | ######???### ###?######" %**!=#?????????????????? | | ""#####X# #"###""" ==%##????????????????? | | """""" @ !*|##???###########?? | | "" "" %[ % [ #####"""""""""##? | | " " [% " """ """"## | | h % %! "" " # | | # = " """# | | ## =%! " "# | | ?## *%= %= " "# | | ??##" = %= = "" | | ???#""" |%*p " | | ???#" ## # " ! h hh | | ??#"" ""########### "" | | ??#""" """##?????????##""" | | ??""" """##???????????#"""" | | ??""" ""#????????????#"" | | ???" ##????????????"""" | | ??""" ???????????" | | ??"" ?????????" | | ???"" ????????? | | ???"""" ???????? | | ???? ????????? " | | ?????? ??????????? "" """ | | ???????" ????????????##""" " " ""#" | | ????????????????????????????????###""" """##"""""" | | ??????????????????????????????????###""""??####### | | ????????????????????????????????????###??????????? | +----------------------------------------------------+ Best States ------------- Heat Dissipation 28 Energy Generation 14 Energy Capacity 280 Matter Stores 300 Matter Capacity 300 Sight Range 16 Terrain Scan Density 10 Armor Coverage 150 Evasion (%) 42 Recoil Reduction 3 Item Schematics ----------------- None Robot Schematics ------------------ None Fabricated ------------ Nothing Alien Tech Used ----------------- None Achievements -------------- None Challenges ------------ None Game ------ Seed LegLayeredFragment Manual? 0 Play Time 00:14:13 Cumulative 436.9 hours Start 2024.06.07 @ 13:54:20 End 2024.06.07 @ 22:50:38 Sessions 3 Manual Loads 0 Difficulty Rogue Special Mode None Game No. 490 Rogue 490 Adventurer 0 Explorer 0 Win Type - Total 36 Types 24/3/8/1/0/0/0/0/0 Lore% 73 Gallery% 84 Achievement% 63 Wizard Run 0 Options --------- Layout 1 ASCII 1 Keyboard 1 Movement Numpad Keybinds 0 Fullscreen 1 Font 24/Tamsyn Map View 50x35 Zoom Use 0% Tactical HUD 1 Map Filters NONE Filters NONE Steam 1 RUN: 1853a131-4eee-4f46-96e8-95ab6a183187